bitfinex/quotes_SOLUSD_20250611
["timestamp","ask_amount","ask_price","bid_price","bid_amount"]
[1749675715098,25.28432314,163.18,163.17,1.53109366]
[1749675715819,25.28432314,163.18,163.17,1.53110148]
[1749675717006,25.28432314,163.18,163.15,11.53088793]
[1749675717207,25.28432314,163.18,163.16,1.53110148]
[1749675717413,25.28432314,163.18,163.17,1.53110148]
[1749675718290,25.28432314,163.18,163.15,11.53088793]
[1749675718491,25.28432314,163.18,163.16,1.53117311]
[1749675718713,25.28432314,163.18,163.17,1.53117311]
[1749675719119,25.28432314,163.18,163.17,1.53118898]
[1749675719698,25.28432314,163.18,163.17,1.53118737]
[1749675720098,25.28432314,163.18,163.17,1.53117956]
[1749675721127,25.28432314,163.18,163.17,1.53118737]
[1749675721430,25.28432314,163.18,163.15,11.53088793]
[1749675721611,25.28432314,163.18,163.16,1.53118776]
[1749675721803,25.28432314,163.18,163.15,11.53088793]
[1749675722006,25.28432314,163.18,163.16,1.5311901]
[1749675722301,25.28432314,163.18,163.17,1.5311901]
[1749675722509,25.28432314,163.18,163.17,1.5311809]
[1749675722712,25.28432314,163.18,163.17,1.53117837]
[1749675722912,25.28432314,163.18,163.17,1.53117956]
[1749675723717,25.28432314,163.18,163.14,11.53088793]
[1749675724220,25.28432314,163.18,163.15,1.53119501]
[1749675724420,25.28432314,163.18,163.16,1.53119478]
[1749675724625,25.28432314,163.18,163.17,1.53119557]
[1749675724922,25.28432314,163.18,163.14,11.53088793]
[1749675725127,25.28432314,163.18,163.15,1.53118014]
[1749675725322,25.28432314,163.18,163.16,1.53117994]
[1749675725524,25.28432314,163.18,163.17,1.53117975]
[1749675725906,25.0,163.18,163.17,11.53088793]
[1749675726103,24.98,163.18,163.17,11.53088793]
[1749675726297,24.98,163.18,163.17,13.06190537]
[1749675726809,24.98,163.18,163.17,13.06186924]
[1749675727121,24.98,163.19,163.17,13.06185016]
[1749675727326,24.98,163.19,163.18,13.06185474]
[1749675728004,24.98,163.19,163.18,13.0618515]
[1749675729429,24.98,163.19,163.18,13.06184673]
[1749675729601,0.14216157,163.22,163.18,13.06184673]
[1749675729798,24.98,163.21,163.19,13.06182362]
[1749675730005,5.36,163.23,163.2,13.06181408]
[1749675730206,24.98,163.21,163.2,11.53088793]
[1749675730426,5.36,163.23,163.2,13.06174678]
[1749675730609,24.98,163.22,163.21,13.06161824]
[1749675730929,24.98,163.22,163.21,11.53088793]
[1749675731137,5.36,163.23,163.21,11.53088793]
[1749675731344,30.34,163.23,163.22,13.06158879]
[1749675731520,30.34,163.23,163.22,13.06158078]
[1749675731932,5.36,163.23,163.22,13.0615478]
[1749675732115,30.34,163.23,163.22,13.06153865]
[1749675732510,0.28432314,163.26,163.22,13.06153865]
[1749675732727,11.6730495,163.28,163.24,11.53088793]
[1749675732921,6.5767,163.29,163.24,11.53088793]
[1749675732922,0.14216157,163.27,163.25,1.53053017]
[1749675733225,0.14216157,163.28,163.26,1.5305293]
[1749675733405,0.28432314,163.26,163.24,11.53088793]
[1749675733728,0.14216157,163.26,163.25,1.53050626]
[1749675733908,25.26432314,163.26,163.25,1.53050626]
[1749675734099,25.26432314,163.26,163.25,1.53049826]
[1749675734611,0.28432314,163.26,163.25,1.53049826]
[1749675734830,25.26432314,163.26,163.25,1.53049826]
[1749675735039,25.26432314,163.26,163.23,11.53088793]
[1749675735209,25.26432314,163.26,163.24,1.53050607]
[1749675735413,25.26432314,163.26,163.25,1.53050645]
[1749675735614,25.26432314,163.26,163.25,1.53050607]
[1749675736531,25.26432314,163.26,163.23,11.53088793]
[1749675736731,25.26432314,163.26,163.24,1.53049865]
[1749675736940,25.26432314,163.26,163.25,1.53049845]
[1749675737123,25.26432314,163.26,163.25,1.53049826]
[1749675737435,25.26432314,163.26,163.23,11.53088793]
[1749675738012,24.98,163.25,163.24,1.53051413]
[1749675738229,24.98,163.25,163.24,1.53051298]
[1749675738426,24.98,163.25,163.24,1.53051182]
[1749675738918,24.98,163.25,163.24,11.53088793]
[1749675739145,24.98,163.25,163.24,13.0613913]
[1749675739845,24.98,163.25,163.24,13.0613703]
[1749675740157,24.98,163.25,163.24,11.53088793]
[1749675740438,24.98,163.25,163.24,13.06123915]
[1749675740742,24.98,163.26,163.24,11.53088793]
[1749675740944,24.98,163.26,163.25,13.06120655]
[1749675741152,24.98,163.26,163.25,13.06120636]
[1749675741653,24.98,163.26,163.25,13.06119855]
[1749675742325,0.28432314,163.28,163.25,11.53088793]
[1749675742532,0.28432314,163.28,163.26,1.53031024]
[1749675742719,149.1,163.3,163.27,11.53088793]
[1749675742922,25.26432314,163.29,163.27,11.53088793]
[1749675743449,0.28432314,163.29,163.27,11.53088793]
[1749675743828,24.98,163.28,163.27,11.53088793]
[1749675744151,24.98,163.28,163.27,13.06104314]
[1749675744355,24.98,163.28,163.27,11.53088793]
[1749675744534,24.98,163.28,163.27,1.53015045]
[1749675744727,24.98,163.28,163.27,11.53088793]
[1749675745257,24.98,163.28,163.27,17.99021801]
[1749675745752,0.28432314,163.29,163.27,17.99021801]
[1749675745923,0.28432314,163.29,163.22,31.70346689]
[1749675745924,24.98,163.28,163.25,26.0]
[1749675746124,24.98,163.28,163.27,17.99021801]
[1749675746329,24.98,163.28,163.26,17.99021801]
[1749675747544,24.98,163.28,163.24,26.0]
[1749675747745,24.98,163.28,163.26,17.99021801]
[1749675751958,42.97021801,163.28,163.24,17.99021801]
[1749675752453,0.28432314,163.27,163.24,17.99021801]
[1749675752753,18.27454115,163.27,163.22,17.99021801]
[1749675753050,17.99021801,163.26,163.22,17.99021801]
[1749675753348,24.96,163.25,163.22,17.99021801]
[1749675755658,24.96,163.25,163.23,17.99021801]
[1749675756728,24.96,163.25,163.22,17.99021801]
[1749675764752,24.96,163.25,163.21,43.99021801]
[1749675764978,0.28432314,163.24,163.21,43.99021801]
[1749675765146,0.28432314,163.24,163.21,26.0]
[1749675765352,0.28432314,163.24,163.21,37.52208277]
[1749675766065,11.80640591,163.24,163.18,5.70346689]
[1749675766270,11.80640591,163.24,163.2,11.52208277]
[1749675766972,11.80640591,163.22,163.18,11.52208277]
[1749675767267,11.80640591,163.19,163.14,11.52208277]
[1749675767474,11.80640591,163.19,163.12,5.70346689]
[1749675767475,11.80640591,163.17,163.11,5.70346689]
[1749675767662,11.52208277,163.16,163.12,11.52208277]
[1749675767859,11.80640591,163.17,163.11,5.70346689]
[1749675768066,0.28432314,163.17,163.14,11.52208277]
[1749675768252,0.28432314,163.17,163.13,11.52208277]
[1749675768852,0.28432314,163.17,163.1,31.70346689]
[1749675768853,0.28432314,163.17,163.14,11.52208277]
[1749675769078,0.28432314,163.17,163.13,11.52208277]
[1749675769284,0.28432314,163.17,163.13,18.01971236]
[1749675771065,0.28432314,163.17,163.14,18.01971236]
[1749675773582,0.28432314,163.17,163.15,1.53124759]
[1749675773783,0.28432314,163.17,163.16,1.5312474]
[1749675774257,0.28432314,163.17,163.16,1.53123939]
[1749675775298,0.28432314,163.17,163.13,18.01971236]
[1749675775579,0.28432314,163.17,163.14,1.53123997]
[1749675775771,0.28432314,163.17,163.13,18.01971236]
[1749675775974,0.28432314,163.17,163.14,1.53125032]
[1749675776177,0.28432314,163.17,163.13,18.01971236]
[1749675776364,0.28432314,163.17,163.14,1.53125013]
[1749675776568,0.28432314,163.17,163.13,18.01971236]
[1749675776798,0.28432314,163.17,163.14,1.53125032]
[1749675776968,18.3040355,163.17,163.15,1.53125032]
[1749675777169,0.28432314,163.17,163.16,1.53125032]
[1749675777504,18.3040355,163.17,163.16,1.53130406]
[1749675777792,18.3040355,163.17,163.12,18.01971236]
[1749675777969,18.01971236,163.16,163.13,1.53133004]
[1749675778165,18.3040355,163.17,163.14,1.53133004]
[1749675778366,18.3040355,163.17,163.15,1.53135075]
[1749675778568,18.3040355,163.17,163.12,18.01971236]
[1749675778768,18.3040355,163.17,163.13,1.53135113]
[1749675778964,18.3040355,163.17,163.14,1.53135094]
[1749675779191,18.3040355,163.17,163.12,18.01971236]
[1749675779393,18.3040355,163.17,163.13,1.53135075]
[1749675779576,18.01971236,163.16,163.14,1.53141603]
[1749675779776,18.01971236,163.16,163.12,18.01971236]
[1749675783383,18.01971236,163.16,163.1,26.0]
[1749675783690,18.01971236,163.15,163.11,19.5510922]
[1749675783992,18.01971236,163.15,163.1,44.01971236]
[1749675784178,0.28432314,163.17,163.09,18.01971236]
[1749675784179,18.01971236,163.13,163.09,18.01971236]
[1749675784703,6.74632314,163.16,163.1,18.01971236]
[1749675784704,24.98,163.14,163.1,18.01971236]
[1749675789895,24.98,163.14,163.11,18.01971236]
[1749675790097,24.98,163.14,163.12,18.01971236]
[1749675791104,24.98,163.14,163.11,18.01971236]
[1749675791976,24.98,163.14,163.08,18.79181043]
[1749675792182,24.98,163.14,163.11,18.01971236]
[1749675792778,42.99971236,163.15,163.11,18.01971236]
[1749675792982,18.3040355,163.14,163.09,44.01971236]
[1749675794096,18.3040355,163.14,163.1,18.01971236]
[1749675794600,18.3040355,163.14,163.11,1.53152547]
[1749675794790,18.3040355,163.14,163.12,1.53153005]
[1749675794990,18.3040355,163.14,163.1,18.01971236]
[1749675795184,18.01971236,163.13,163.11,1.5315272]
[1749675795385,18.01971236,163.13,163.09,18.01971236]
[1749675795589,18.01971236,163.13,163.1,1.53157888]
[1749675795779,42.99971236,163.12,163.07,18.01971236]
[1749675795985,42.99971236,163.12,163.08,18.01971236]
[1749675796299,42.99971236,163.12,163.09,1.53165033]
[1749675796483,42.99971236,163.12,163.1,1.53165033]
[1749675796685,42.99971236,163.12,163.08,18.01971236]
[1749675796898,42.99971236,163.12,163.09,1.53166581]
[1749675797097,42.99971236,163.12,163.08,18.01971236]
[1749675797311,42.99971236,163.12,163.09,1.53167109]
[1749675797490,42.99971236,163.12,163.08,18.01971236]
[1749675797810,42.99971236,163.12,163.09,1.53167109]
[1749675798006,42.99971236,163.12,163.1,1.5316709]
[1749675798195,42.99971236,163.12,163.08,18.01971236]
[1749675798387,42.99971236,163.12,163.09,1.53167363]
[1749675798590,42.99971236,163.12,163.08,18.01971236]
[1749675798591,42.99971236,163.12,163.1,1.53167344]
[1749675798789,42.99971236,163.12,163.08,18.01971236]
[1749675798985,42.99971236,163.12,163.09,1.53166581]
[1749675799201,42.99971236,163.12,163.1,1.53166562]
[1749675799508,18.3040355,163.11,163.07,18.01971236]
[1749675799701,18.3040355,163.11,163.08,1.53168321]
[1749675799906,18.3040355,163.11,163.09,1.53168321]
[1749675800108,0.28432314,163.11,163.07,18.01971236]
[1749675800415,0.28432314,163.11,163.08,1.53180104]
[1749675800609,0.28432314,163.11,163.07,18.01971236]
[1749675800804,0.28432314,163.11,163.08,1.53182733]
[1749675801000,0.28432314,163.11,163.05,26.0]
[1749675801321,0.28432314,163.11,163.07,18.01971236]
[1749675801499,0.28432314,163.11,163.08,1.53182652]
[1749675801695,0.28432314,163.11,163.09,1.53181812]
[1749675801901,0.28432314,163.11,163.07,18.01971236]
[1749675802205,0.28432314,163.11,163.08,1.53181049]
[1749675802410,0.28432314,163.11,163.09,1.53181049]
[1749675802615,0.28432314,163.11,163.07,18.01971236]
[1749675803205,11.82622619,163.11,163.07,11.54190305]
[1749675803816,0.28432314,163.11,163.07,11.54190305]
[1749675805214,0.28432314,163.11,163.08,1.5318899]
[1749675805507,0.28432314,163.11,163.07,11.54190305]
[1749675805713,0.28432314,163.11,163.08,1.53187425]
[1749675805907,0.28432314,163.11,163.07,11.54190305]
[1749675806102,0.28432314,163.11,163.08,1.53187425]
[1749675806308,0.28432314,163.11,163.07,11.54190305]
[1749675806507,0.28432314,163.11,163.08,1.53187425]
[1749675806710,0.28432314,163.11,163.07,11.54190305]
[1749675806904,0.28432314,163.11,163.08,1.53188208]
[1749675807103,0.28432314,163.11,163.07,11.54190305]
[1749675807398,0.28432314,163.11,163.05,26.0]
[1749675807607,0.28432314,163.11,163.07,11.54190305]
[1749675807812,0.28432314,163.11,163.08,1.53187425]
[1749675808014,0.28432314,163.11,163.07,11.54190305]
[1749675808199,0.28432314,163.11,163.08,1.53187425]
[1749675808397,0.28432314,163.11,163.07,11.54190305]
[1749675809002,0.28432314,163.11,163.08,1.53187425]
[1749675809322,0.28432314,163.11,163.07,11.54190305]
[1749675811450,0.28432314,163.11,163.08,1.53188208]
[1749675811614,0.28432314,163.11,163.09,1.53188188]
[1749675811805,0.28432314,163.11,163.1,1.53188169]
[1749675812501,0.28432314,163.11,163.1,1.5318815]
[1749675813221,0.28432314,163.11,163.1,1.53187896]
[1749675813516,0.28432314,163.11,163.07,11.54190305]
[1749675813728,0.28432314,163.11,163.08,1.53187896]
[1749675814015,0.28432314,163.11,163.07,11.54190305]
[1749675814216,0.28432314,163.11,163.08,1.5318899]
[1749675814517,0.28432314,163.11,163.09,1.53188971]
[1749675814716,0.28432314,163.11,163.1,1.53188971]
[1749675814893,0.28432314,163.11,163.07,11.54190305]
[1749675815101,0.28432314,163.11,163.08,1.53187368]
[1749675815315,0.28432314,163.11,163.09,1.53187368]
[1749675815622,0.28432314,163.11,163.1,1.53188169]
[1749675816117,0.28432314,163.11,163.07,11.54190305]
[1749675816317,0.28432314,163.11,163.08,1.53188208]
[1749675816522,0.28432314,163.11,163.09,1.53188188]
[1749675816713,0.28432314,163.11,163.07,11.54190305]
[1749675816905,0.28432314,163.11,163.08,1.53188951]
[1749675817104,11.82622619,163.11,163.09,1.53188971]
[1749675817309,0.28432314,163.09,163.05,26.0]
[1749675817510,25.26432314,163.09,163.06,1.53195761]
[1749675817819,36.80622619,163.09,163.07,1.53197795]
[1749675818023,0.28432314,163.07,163.03,5.688822]
[1749675818325,0.28432314,163.07,163.02,11.54190305]
[1749675818326,11.54190305,163.06,163.04,1.53214832]
[1749675818518,36.80622619,163.06,163.05,1.53219476]
[1749675818902,36.80622619,163.06,163.01,17.23072505]
[1749675818903,0.28432314,163.05,163.01,17.23072505]
[1749675819101,0.28432314,163.05,163.02,1.5322223]
[1749675819296,0.28432314,163.05,163.03,1.53222656]
[1749675819624,0.28432314,163.05,163.01,5.55623421]
[1749675819817,11.82622619,163.05,163.01,11.54190305]
[1749675820210,0.28432314,163.05,163.01,11.54190305]
[1749675822510,11.82622619,163.05,163.01,11.54190305]
[1749675822699,11.54190305,163.04,163.0,11.54190305]
[1749675822900,36.80622619,163.03,162.98,11.54190305]
[1749675823102,11.54190305,163.02,162.98,11.54190305]
[1749675824028,36.80622619,163.03,162.98,11.54190305]
[1749675824929,36.80622619,163.03,162.99,11.54190305]
[1749675825328,43.31691839,163.03,162.99,18.05259525]
[1749675827226,18.05259525,163.02,162.97,8.33333333]
[1749675827422,18.05259525,163.02,162.98,18.05259525]
[1749675828034,18.05259525,163.02,162.97,8.33333333]
[1749675828035,18.33691839,163.0,162.97,8.33333333]
[1749675828230,43.31691839,163.0,162.97,8.33333333]
[1749675829326,18.33691839,162.98,162.97,8.33333333]
[1749675830812,0.28432314,162.98,162.97,8.33333333]
[1749675831017,18.33691839,162.98,162.97,8.33333333]
[1749675832233,37.12872882,162.98,162.97,8.33333333]
[1749675832438,38.74672882,162.98,162.97,8.33333333]
[1749675832616,44.88245099,162.98,162.97,8.33333333]
[1749675832936,62.93504624,162.98,162.97,8.33333333]
[1749675833338,69.88245099,162.98,162.97,8.33333333]
[1749675833837,63.74672882,162.98,162.97,8.33333333]
[1749675834139,89.74672882,162.98,162.97,8.33333333]
[1749675834937,95.88245099,162.98,162.97,8.33333333]
[1749675835127,89.74672882,162.98,162.97,8.33333333]
[1749675836315,95.88245099,162.98,162.97,8.33333333]
[1749675837744,89.74672882,162.98,162.97,8.33333333]
[1749675838554,95.88245099,162.98,162.97,8.33333333]
[1749675844237,44.64964886,162.94,162.81,1.5706]
[1749675844565,0.28432314,162.89,162.86,18.05259525]
[1749675844862,25.0,162.88,162.86,18.05259525]
[1749675850647,25.0,162.88,162.85,18.05259525]
[1749675852942,25.0,162.88,162.86,18.05259525]
[1749675853968,25.0,162.88,162.85,18.05259525]
[1749675857453,25.0,162.88,162.86,18.05259525]
[1749675858273,25.0,162.88,162.83,26.0]
[1749675858451,25.28432314,162.88,162.87,18.05259525]
[1749675858868,0.28432314,162.91,162.87,18.05259525]
[1749675859073,25.28432314,162.91,162.89,18.05259525]
[1749675859458,25.28432314,162.91,162.85,26.0]
[1749675859658,25.28432314,162.91,162.88,18.05259525]
[1749675859852,25.28432314,162.91,162.87,18.05259525]
[1749675861947,25.28432314,162.91,162.88,18.05259525]
[1749675863270,25.28432314,162.91,162.85,26.0]
[1749675863476,25.28432314,162.91,162.88,18.05259525]
[1749675864874,25.28432314,162.91,162.87,18.05259525]
[1749675866387,25.28432314,162.91,162.88,18.05259525]
[1749675867952,25.28432314,162.91,162.85,26.0]
[1749675868152,25.28432314,162.91,162.88,18.05259525]
[1749675868875,0.28432314,162.89,162.88,18.05259525]
[1749675869781,0.28432314,162.89,162.86,18.62408146]
[1749675870089,0.28432314,162.89,162.88,18.05259525]
[1749675872483,31.34,162.95,162.88,18.05259525]
[1749675872658,19.07613357,162.94,162.9,18.05259525]
[1749675872986,43.79181043,162.94,162.9,18.05259525]
[1749675873277,0.14216157,162.93,162.91,18.05259525]
[1749675873778,0.14216157,162.93,162.86,20.25168146]
[1749675873976,0.14216157,162.93,162.9,18.05259525]
[1749675874283,0.28432314,162.91,162.9,18.05259525]
[1749675875693,25.0,162.93,162.9,18.05259525]
[1749675875983,25.0,162.93,162.88,18.05259525]
[1749675875984,25.14216157,162.93,162.92,18.05259525]
[1749675876197,25.28432314,162.93,162.92,18.05259525]
[1749675879498,25.0,162.94,162.92,18.05259525]
[1749675879699,0.28432314,162.94,162.93,18.05259525]
[1749675879903,30.34,162.95,162.93,18.05259525]
[1749675880216,24.42375682,163.0,162.94,18.05259525]
[1749675880412,44.07613357,162.99,162.96,18.05259525]
[1749675880981,24.28159525,163.0,162.95,18.05259525]
[1749675881188,43.64964886,162.99,162.95,18.05259525]
[1749675881490,0.28432314,162.98,162.95,18.05259525]
[1749675883205,0.28432314,162.98,162.96,18.05259525]
[1749675883519,25.0,163.01,162.97,18.05259525]
[1749675883683,0.28432314,163.0,162.97,18.05259525]
[1749675884084,0.14216157,163.0,162.97,18.05259525]
[1749675884506,0.28432314,163.0,162.97,18.05259525]
[1749675886318,0.28432314,163.0,162.98,18.05259525]
[1749675886626,0.28432314,162.99,162.98,18.05259525]
[1749675887710,25.0,163.01,162.98,18.05259525]
[1749675887911,0.28432314,163.0,162.99,18.05259525]
[1749675890213,0.42648471,163.03,162.99,18.05259525]
[1749675890393,25.42648471,163.03,163.0,18.05259525]
[1749675890791,25.42648471,163.03,163.01,18.05259525]
[1749675891517,0.28432314,163.03,163.01,18.05259525]
[1749675892104,0.28432314,163.03,163.02,18.05259525]
[1749675896221,0.28432314,163.03,163.01,18.05259525]
[1749675899010,0.28432314,163.04,162.97,1.6378]
[1749675899321,18.33691839,163.04,163.0,18.05259525]
[1749675899816,0.28432314,163.04,163.0,18.05259525]
[1749675900511,0.28432314,163.04,163.01,18.05259525]
[1749675903509,18.33691839,163.04,163.0,18.05259525]
[1749675903719,18.33691839,163.02,162.93,1.6046]
[1749675904026,0.28432314,163.02,162.98,18.05259525]
[1749675904398,0.28432314,163.02,162.99,18.05259525]
[1749675905123,0.28432314,163.02,162.95,26.0]
[1749675905124,0.28432314,163.02,163.01,18.05259525]
[1749675906912,0.28432314,163.02,162.96,18.05259525]
[1749675907119,0.28432314,163.02,163.0,18.05259525]
[1749675909124,0.28432314,163.02,163.01,18.05259525]
[1749675909433,0.28432314,163.02,162.96,18.05259525]
[1749675909733,0.28432314,163.02,163.01,18.05259525]
[1749675910434,0.28432314,163.02,163.0,18.05259525]
[1749675910811,44.05613357,163.04,163.0,18.05259525]
[1749675912935,62.10872882,163.04,163.0,18.05259525]
[1749675917329,55.60938925,163.04,163.0,11.55325568]
[1749675922625,44.05613357,163.04,163.0,11.55325568]
[1749675922824,11.97974039,163.02,162.98,11.55325568]
[1749675923029,36.95974039,163.02,162.98,11.55325568]
[1749675924634,30.20290454,163.01,162.97,11.55325568]
[1749675924865,0.28432314,162.99,162.96,11.55325568]
[1749675925162,0.28432314,162.99,162.97,11.55325568]
[1749675925529,0.28432314,162.99,162.98,1.53302083]
[1749675925755,0.28432314,162.99,162.98,1.53303186]
[1749675926056,0.28432314,162.99,162.98,1.53303166]
[1749675926428,0.28432314,162.99,162.98,1.53303422]
[1749675926743,0.28432314,162.99,162.98,1.53302814]
[1749675926947,0.28432314,162.99,162.98,1.53302817]
[1749675927453,0.28432314,162.99,162.98,1.53302701]
[1749675927761,0.28432314,162.99,162.98,1.5330252]
[1749675927947,0.28432314,162.99,162.98,1.53305453]
[1749675928137,30.62938925,162.99,162.95,11.55325568]
[1749675928339,19.07613357,162.99,162.96,1.53312229]
[1749675928571,0.28432314,162.97,162.95,11.55325568]
[1749675928935,0.28432314,162.97,162.96,1.53311568]
[1749675929140,0.28432314,162.97,162.96,1.53311549]
[1749675929359,0.28432314,162.97,162.95,11.55325568]
[1749675929659,0.28432314,162.97,162.96,1.53313111]
[1749675929838,0.28432314,162.97,162.96,1.53313131]
[1749675930337,0.28432314,162.97,162.96,1.53313292]
[1749675930551,0.28432314,162.97,162.95,11.55325568]
[1749675930740,0.28432314,162.97,162.96,1.53312274]
[1749675930936,0.28432314,162.97,162.96,1.53312254]
[1749675931753,0.28432314,162.97,162.96,1.5331251]
[1749675931955,0.28432314,162.97,162.96,1.53312991]
[1749675932158,0.28432314,162.97,162.95,11.55325568]
[1749675932347,0.28432314,162.97,162.96,1.53312991]
[1749675933558,0.28432314,162.97,162.96,1.53313773]
[1749675934451,0.28432314,162.97,162.95,11.55325568]
[1749675934665,0.28432314,162.97,162.96,1.53320044]
[1749675934839,0.28432314,162.97,162.95,11.55325568]
[1749675935166,0.28432314,162.97,162.96,1.53320096]
[1749675935330,0.28432314,162.97,162.95,11.55325568]
[1749675935536,0.28432314,162.97,162.96,1.53320076]
[1749675935736,0.28432314,162.97,162.96,1.53320858]
[1749675936164,0.28432314,162.97,162.95,11.55325568]
[1749675937073,0.28432314,162.97,162.96,11.55325568]
[1749675939858,0.28432314,162.97,162.96,13.08643617]
[1749675940060,0.28432314,162.97,162.96,13.08637365]
[1749675940674,0.28432314,162.97,162.96,13.08636584]
[1749675940851,0.28432314,162.97,162.96,11.55325568]
[1749675941167,0.28432314,162.97,162.96,13.08636584]
[1749675941348,0.28432314,162.97,162.96,11.55325568]
[1749675941544,0.28432314,162.97,162.96,13.08631896]
[1749675941754,0.28432314,162.97,162.96,13.08627802]
[1749675941955,0.28432314,162.97,162.96,11.55325568]
[1749675942372,0.28432314,162.97,162.95,18.57729457]
[1749675942574,0.28432314,162.97,162.96,11.55325568]
[1749675943470,44.05613357,163.0,162.96,11.55325568]
[1749675943774,44.05613357,163.0,162.97,11.55325568]
[1749675944969,25.26432314,163.0,162.97,11.55325568]
[1749675945165,25.26432314,163.0,162.98,11.55325568]
[1749675947864,25.26432314,163.0,162.97,11.55325568]
[1749675951187,0.28432314,163.0,162.97,11.55325568]
[1749675951368,25.26432314,163.0,162.97,11.55325568]
[1749675952484,25.26432314,163.0,162.95,18.57729457]
[1749675952786,25.26432314,163.0,162.97,11.55325568]
[1749675954106,25.26432314,163.0,162.98,11.55325568]
[1749675954274,5.34,163.01,162.99,11.55325568]
[1749675954484,30.32,163.01,163.0,11.55325568]
[1749675954661,149.1,163.06,163.0,11.55325568]
[1749675954861,149.1,163.06,163.04,11.55325568]
[1749675955084,5.34,163.08,163.05,11.55325568]
[1749675955278,5.34,163.08,163.07,11.55325568]
[1749675955586,30.60432314,163.08,163.07,11.55325568]
[1749675956890,0.28432314,163.07,163.01,5.72826062]
[1749675957772,0.14216157,163.07,163.0,10.76288195]
[1749675958081,0.28432314,163.07,163.06,11.55325568]
[1749675960461,0.28432314,163.07,163.05,11.55325568]
[1749675961267,0.28432314,163.07,163.04,11.55325568]
[1749675962085,19.07613357,163.07,163.04,11.55325568]
[1749675962291,19.07613357,163.07,163.03,11.55325568]
[1749675963291,19.07613357,163.07,162.99,8.1075]
[1749675963588,19.07613357,163.07,163.04,18.04373157]
[1749675963774,19.07613357,163.07,163.03,18.04373157]
[1749675964678,19.07613357,163.07,163.04,18.04373157]
[1749675964886,19.07613357,163.07,163.03,18.04373157]
[1749675965902,0.28432314,163.05,163.03,18.04373157]
[1749675966601,0.28432314,163.05,163.02,18.04373157]
[1749675966773,0.28432314,163.03,162.97,5.716719]
[1749675966974,0.28432314,163.03,163.0,18.04373157]
[1749675966975,25.26432314,163.03,163.0,18.04373157]
[1749675968297,18.04373157,163.01,162.95,7.366319]
[1749675968489,0.28432314,163.0,162.97,18.04373157]
[1749675968686,0.28432314,163.0,162.97,18.47170805]
[1749675968988,0.28432314,163.0,162.98,18.04373157]
[1749675970402,0.42648471,163.01,162.97,36.51543962]
[1749675970896,18.47021628,163.01,162.97,36.51543962]
[1749675971769,0.42648471,163.01,162.97,18.04373157]
[1749675971966,0.42648471,163.01,162.93,26.0]
[1749675972170,0.42648471,163.01,162.97,36.70481653]
[1749675973476,18.47021628,163.01,162.97,36.70481653]
[1749675973692,43.02373157,163.0,162.97,18.66108496]
[1749675974087,24.98,163.0,162.97,36.70481653]
[1749675977901,0.28432314,162.99,162.98,18.04373157]
[1749675978285,24.98,163.0,162.98,18.04373157]
[1749675978496,18.04373157,163.03,162.99,18.04373157]
[1749675978497,43.77181043,163.03,162.99,18.04373157]
[1749675978803,0.14216157,163.02,162.99,18.04373157]
[1749675979900,0.28432314,163.0,162.97,36.70481653]
[1749675980110,0.28432314,162.98,162.97,18.66108496]
[1749675981811,24.98,163.0,162.97,36.70481653]
[1749675983516,44.05613357,163.02,162.97,36.70481653]
[1749675983699,44.05613357,163.02,162.97,18.66108496]
[1749675983900,44.05613357,163.02,162.99,18.04373157]
[1749675984817,19.07613357,163.02,162.99,18.04373157]
[1749675985010,25.40648471,163.02,162.99,18.04373157]
[1749675985215,25.40648471,163.02,163.0,18.04373157]
[1749675986101,25.40648471,163.02,162.99,18.04373157]
[1749675986520,0.28432314,163.02,163.0,18.04373157]
[1749675989125,0.28432314,163.02,163.01,18.04373157]
[1749675991900,19.07613357,163.04,163.01,18.04373157]
[1749675992231,5.34,163.05,163.03,18.04373157]
[1749675992407,5.34,163.05,163.04,18.04373157]
[1749675999837,5.62432314,163.05,163.04,18.04373157]
[1749676000009,0.28432314,163.04,163.01,18.04373157]
[1749676002120,0.28432314,163.04,163.02,18.04373157]
[1749676009033,0.28432314,163.04,163.01,18.04373157]
[1749676009034,19.07613357,163.04,163.01,18.04373157]
[1749676009239,18.04373157,163.03,162.99,18.04373157]
[1749676009637,37.11986514,163.04,162.99,18.04373157]
[1749676009848,19.07613357,163.04,163.01,18.04373157]
[1749676010841,19.07613357,163.04,163.02,18.04373157]
[1749676011347,0.28432314,163.04,163.02,18.04373157]
[1749676016027,0.28432314,163.04,163.01,18.04373157]
[1749676016333,0.28432314,163.04,163.02,18.04373157]
[1749676017235,0.28432314,163.04,163.01,18.04373157]
[1749676018160,0.28432314,163.04,163.02,18.04373157]
[1749676021460,0.28432314,163.04,163.03,18.04373157]
[1749676023235,0.28432314,163.04,163.03,11.54892657]
[1749676024132,0.28432314,163.04,163.0,18.77882045]
[1749676024345,0.28432314,163.04,163.02,11.54892657]
[1749676025257,0.28432314,163.04,163.02,18.04736916]
[1749676032560,0.28432314,163.04,163.0,18.77882045]